[Event "Late-Titled-Tuesday-Blitz-February-20-2024"]
[Site "Chess.com"]
[Date "2024.02.20"]
[Round "7"]
[White "ural58"]
[Black "StrackedAktonamee"]
[Result "0-1"]
[WhiteElo "2482"]
[BlackElo "2395"]
[TimeControl "180+1"]
[EndTime "15:16:55 PST"]
[Termination "StrackedAktonamee won by resignation"]

1. e4 {[%clk 0:03:00.9]} 1... c6 {[%clk 0:02:55.4]} 2. Nc3 {[%clk 0:02:58.3]}
2... d5 {[%clk 0:02:56.3]} 3. Nf3 {[%clk 0:02:58.2]} 3... g6 {[%clk 0:02:50.2]}
4. d4 {[%clk 0:02:49.4]} 4... Bg4 {[%clk 0:02:43.3]} 5. h3 {[%clk 0:02:48.1]}
5... Bxf3 {[%clk 0:02:38.8]} 6. Qxf3 {[%clk 0:02:47.8]} 6... Bg7 {[%clk
0:02:37.5]} 7. Be3 {[%clk 0:02:46.7]} 7... e6 {[%clk 0:02:35.3]} 8. g4 {[%clk
0:02:42.4]} 8... Nd7 {[%clk 0:02:33.8]} 9. h4 {[%clk 0:02:39.8]} 9... h5 {[%clk
0:02:27.8]} 10. g5 {[%clk 0:02:38.5]} 10... Ne7 {[%clk 0:02:26]} 11. Bh3 {[%clk
0:02:36]} 11... Qb6 {[%clk 0:02:11.4]} 12. O-O-O {[%clk 0:02:34.7]} 12... O-O
{[%clk 0:01:59.7]} 13. Qg3 {[%clk 0:02:33.3]} 13... Qa6 {[%clk 0:01:54.4]} 14.
Qd6 {[%clk 0:02:24.5]} 14... Rfd8 {[%clk 0:01:54.1]} 15. Bxe6 {[%clk 0:02:09.3]}
15... Nc8 {[%clk 0:01:49.4]} 16. Qc7 {[%clk 0:02:03.8]} 16... Ncb6 {[%clk
0:01:49]} 17. Bxd7 {[%clk 0:02:01.6]} 17... Rxd7 {[%clk 0:01:48.3]} 18. Qf4
{[%clk 0:01:59.2]} 18... Nc4 {[%clk 0:01:47.6]} 19. Rh3 {[%clk 0:01:27.5]} 19...
Qb6 {[%clk 0:01:43]} 20. b3 {[%clk 0:01:26.6]} 20... Nxe3 {[%clk 0:01:36.5]} 21.
fxe3 {[%clk 0:01:18.8]} 21... Qa5 {[%clk 0:01:33.2]} 22. Kb2 {[%clk 0:01:13.6]}
22... dxe4 {[%clk 0:01:17.1]} 23. Nxe4 {[%clk 0:01:01.2]} 23... c5 {[%clk
0:01:14.8]} 24. Nf6+ {[%clk 0:01:01.1]} 24... Bxf6 {[%clk 0:01:14.2]} 25. gxf6
{[%clk 0:00:57.3]} 25... Kh7 {[%clk 0:01:13.7]} 26. d5 {[%clk 0:00:50.5]} 26...
Rc8 {[%clk 0:01:10]} 27. e4 {[%clk 0:00:44.8]} 27... c4 {[%clk 0:01:09.7]} 28.
Rd4 {[%clk 0:00:27.9]} 28... c3+ {[%clk 0:01:04.9]} 29. Kb1 {[%clk 0:00:25]}
29... Rc6 {[%clk 0:00:45.3]} 30. Qc1 {[%clk 0:00:17.6]} 30... Rxf6 {[%clk
0:00:43.7]} 31. e5 {[%clk 0:00:16.2]} 31... Rf5 {[%clk 0:00:35.9]} 32. Re3
{[%clk 0:00:15.5]} 32... Qa6 {[%clk 0:00:34]} 33. e6 {[%clk 0:00:14.4]} 33...
Rf1 {[%clk 0:00:33.1]} 34. Re1 {[%clk 0:00:13.8]} 34... Rxe1 {[%clk 0:00:28.6]}
35. Qxe1 {[%clk 0:00:14.7]} 35... fxe6 {[%clk 0:00:26.4]} 36. dxe6 {[%clk
0:00:11.3]} 36... Rxd4 {[%clk 0:00:22.4]} 37. e7 {[%clk 0:00:11.5]} 37... Qa3
{[%clk 0:00:22.1]} 0-1

[Event "Late-Titled-Tuesday-Blitz-February-20-2024"]
[Site "Chess.com"]
[Date "2024.02.20"]
[Round "7"]
[White "ventdelest"]
[Black "Teidi96"]
[Result "0-1"]
[WhiteElo "2075"]
[BlackElo "2256"]
[TimeControl "180+1"]
[EndTime "15:17:05 PST"]
[Termination "Teidi96 won on time"]

1. e4 {[%clk 0:02:57.8]} 1... Nf6 {[%clk 0:03:00.9]} 2. e5 {[%clk 0:02:57.5]}
2... Nd5 {[%clk 0:03:01]} 3. c4 {[%clk 0:02:57.9]} 3... Nb6 {[%clk 0:03:01.5]}
4. c5 {[%clk 0:02:58.4]} 4... Nd5 {[%clk 0:03:01.6]} 5. Nc3 {[%clk 0:02:57.1]}
5... c6 {[%clk 0:02:59]} 6. Bc4 {[%clk 0:02:55.9]} 6... Nxc3 {[%clk 0:02:48.5]}
7. dxc3 {[%clk 0:02:54.3]} 7... d5 {[%clk 0:02:49.1]} 8. cxd6 {[%clk 0:02:52.6]}
8... exd6 {[%clk 0:02:50]} 9. Bf4 {[%clk 0:02:47.1]} 9... d5 {[%clk 0:02:48]}
10. Bd3 {[%clk 0:02:45.4]} 10... Be7 {[%clk 0:02:47]} 11. Nf3 {[%clk 0:02:44.6]}
11... O-O {[%clk 0:02:43.5]} 12. h3 {[%clk 0:02:43.5]} 12... Re8 {[%clk
0:02:38]} 13. O-O {[%clk 0:02:42.8]} 13... Be6 {[%clk 0:02:36.6]} 14. Nd4 {[%clk
0:02:39.3]} 14... Qd7 {[%clk 0:02:24.4]} 15. Qh5 {[%clk 0:02:26.9]} 15... g6
{[%clk 0:02:21.9]} 16. Qf3 {[%clk 0:02:14.9]} 16... a6 {[%clk 0:02:20.1]} 17.
Nxe6 {[%clk 0:01:52.3]} 17... Qxe6 {[%clk 0:02:19.4]} 18. Rfe1 {[%clk
0:01:46.2]} 18... Nd7 {[%clk 0:02:17.9]} 19. Qe2 {[%clk 0:01:29.5]} 19... Bf8
{[%clk 0:02:14.5]} 20. Bg3 {[%clk 0:01:26.3]} 20... Bg7 {[%clk 0:02:13.2]} 21.
f4 {[%clk 0:01:24.6]} 21... c5 {[%clk 0:02:11.5]} 22. Qf2 {[%clk 0:01:21.4]}
22... b5 {[%clk 0:02:09]} 23. f5 {[%clk 0:01:17.3]} 23... gxf5 {[%clk
0:02:08.9]} 24. Bxf5 {[%clk 0:01:16.7]} 24... Qe7 {[%clk 0:02:07.6]} 25. Bh4
{[%clk 0:01:04.4]} 25... Qf8 {[%clk 0:02:05.2]} 26. Bxd7 {[%clk 0:01:02.8]}
26... Rxe5 {[%clk 0:02:03.6]} 27. Rxe5 {[%clk 0:00:59.9]} 27... Bxe5 {[%clk
0:02:04.5]} 28. Bf6 {[%clk 0:00:54.5]} 28... Qd6 {[%clk 0:01:59.3]} 29. Bxe5
{[%clk 0:00:50.2]} 29... Qxe5 {[%clk 0:01:59.8]} 30. Rf1 {[%clk 0:00:41.2]}
30... Rf8 {[%clk 0:01:56.9]} 31. Qf6 {[%clk 0:00:32.9]} 31... Qxf6 {[%clk
0:01:55.6]} 32. Rxf6 {[%clk 0:00:32]} 32... Rd8 {[%clk 0:01:56.3]} 33. Bf5
{[%clk 0:00:25.1]} 33... d4 {[%clk 0:01:52.8]} 34. cxd4 {[%clk 0:00:23.1]} 34...
Rxd4 {[%clk 0:01:53.1]} 35. Rxa6 {[%clk 0:00:20.9]} 35... Rd2 {[%clk 0:01:53.7]}
36. Rc6 {[%clk 0:00:18.7]} 36... Rxb2 {[%clk 0:01:52.5]} 37. Rxc5 {[%clk
0:00:18.8]} 37... Rxa2 {[%clk 0:01:46.4]} 38. Rxb5 {[%clk 0:00:14.9]} 38... Kg7
{[%clk 0:01:45.5]} 39. Be4 {[%clk 0:00:14.6]} 39... Ra7 {[%clk 0:01:45.3]} 40.
Rh5 {[%clk 0:00:14.3]} 40... h6 {[%clk 0:01:44.7]} 41. Bf3 {[%clk 0:00:14.5]}
41... Rc7 {[%clk 0:01:42.5]} 42. Kh2 {[%clk 0:00:14.7]} 42... Re7 {[%clk
0:01:41.5]} 43. Rf5 {[%clk 0:00:14]} 43... Kg6 {[%clk 0:01:40.5]} 44. Ra5 {[%clk
0:00:13.7]} 44... Kg7 {[%clk 0:01:39.5]} 45. g4 {[%clk 0:00:14]} 45... Rd7
{[%clk 0:01:33.8]} 46. Kg3 {[%clk 0:00:12.7]} 46... Rc7 {[%clk 0:01:34]} 47. h4
{[%clk 0:00:12.4]} 47... Re7 {[%clk 0:01:33]} 48. Kf4 {[%clk 0:00:11.9]} 48...
Rc7 {[%clk 0:01:32]} 49. Be4 {[%clk 0:00:12.2]} 49... Re7 {[%clk 0:01:29.5]} 50.
Rb5 {[%clk 0:00:08.3]} 50... Rc7 {[%clk 0:01:29.2]} 51. Rb7 {[%clk 0:00:07.4]}
51... Rc1 {[%clk 0:01:23.5]} 52. Bd5 {[%clk 0:00:05.8]} 52... Rf1+ {[%clk
0:01:23.6]} 53. Ke5 {[%clk 0:00:05.7]} 53... Rf2 {[%clk 0:01:22.2]} 54. Rxf7+
{[%clk 0:00:02.9]} 54... Rxf7 {[%clk 0:01:19.1]} 0-1

[Event "Late-Titled-Tuesday-Blitz-February-20-2024"]
[Site "Chess.com"]
[Date "2024.02.20"]
[Round "7"]
[White "ahmedkandiliii"]
[Black "Balla_Tamas"]
[Result "0-1"]
[WhiteElo "2506"]
[BlackElo "2399"]
[TimeControl "180+1"]
[EndTime "15:17:08 PST"]
[Termination "Balla_Tamas won by checkmate"]

1. e4 {[%clk 0:02:45.7]} 1... c5 {[%clk 0:02:59.6]} 2. Nf3 {[%clk 0:02:44.8]}
2... Nc6 {[%clk 0:02:59.5]} 3. d4 {[%clk 0:02:43.4]} 3... cxd4 {[%clk
0:02:59.6]} 4. Nxd4 {[%clk 0:02:44.3]} 4... e5 {[%clk 0:03:00.3]} 5. Nb5 {[%clk
0:02:43.6]} 5... d6 {[%clk 0:03:00.4]} 6. N1c3 {[%clk 0:02:42.5]} 6... a6 {[%clk
0:03:00.5]} 7. Na3 {[%clk 0:02:41.9]} 7... b5 {[%clk 0:03:01.3]} 8. Nd5 {[%clk
0:02:39.1]} 8... Nge7 {[%clk 0:03:01.9]} 9. c4 {[%clk 0:02:35.1]} 9... Nxd5
{[%clk 0:03:02]} 10. exd5 {[%clk 0:02:34.7]} 10... Nd4 {[%clk 0:03:02.1]} 11.
cxb5 {[%clk 0:02:34]} 11... Bd7 {[%clk 0:03:02.1]} 12. bxa6 {[%clk 0:02:31.7]}
12... Qa5+ {[%clk 0:03:01.8]} 13. Bd2 {[%clk 0:02:30.2]} 13... Qxd5 {[%clk
0:03:02.7]} 14. Nc2 {[%clk 0:02:23.8]} 14... Qe4+ {[%clk 0:02:58.1]} 15. Ne3
{[%clk 0:02:23.8]} 15... Be7 {[%clk 0:02:56.3]} 16. Be2 {[%clk 0:02:13.2]} 16...
O-O {[%clk 0:02:52]} 17. O-O {[%clk 0:02:10.5]} 17... f5 {[%clk 0:02:52.2]} 18.
Bc4+ {[%clk 0:02:09.7]} 18... Kh8 {[%clk 0:02:50.3]} 19. Bd5 {[%clk 0:02:09.5]}
19... Qh4 {[%clk 0:02:46.6]} 20. Bxa8 {[%clk 0:02:08.3]} 20... Rxa8 {[%clk
0:02:46.6]} 21. Nd5 {[%clk 0:02:05.7]} 21... Bc6 {[%clk 0:01:41.1]} 22. Nxe7
{[%clk 0:01:58.5]} 22... Bf3 {[%clk 0:01:29.5]} 23. Nxf5 {[%clk 0:01:08.4]}
23... Qg4 {[%clk 0:01:22.9]} 24. Ne3 {[%clk 0:01:04.4]} 24... Qg6 {[%clk
0:01:11.5]} 25. Qb1 {[%clk 0:00:47.6]} 25... Be4 {[%clk 0:00:56]} 26. Qd1 {[%clk
0:00:46.4]} 26... Bf3 {[%clk 0:00:55.2]} 27. Qa4 {[%clk 0:00:36.1]} 27... Nf5
{[%clk 0:00:31.3]} 28. g3 {[%clk 0:00:23.1]} 28... Nd4 {[%clk 0:00:31.6]} 29.
Rfe1 {[%clk 0:00:20]} 29... Qh5 {[%clk 0:00:22.9]} 30. h4 {[%clk 0:00:18.9]}
30... Qg6 {[%clk 0:00:20.3]} 31. Bc3 {[%clk 0:00:16.9]} 31... Nf5 {[%clk
0:00:17.8]} 32. Nxf5 {[%clk 0:00:12.9]} 32... Qxf5 {[%clk 0:00:18.7]} 33. Kh2
{[%clk 0:00:12.9]} 33... Bd5 {[%clk 0:00:15.2]} 34. Qd1 {[%clk 0:00:11.5]} 34...
Qxf2+ {[%clk 0:00:14.9]} 35. Kh3 {[%clk 0:00:10.5]} 35... Bg2+ {[%clk
0:00:10.4]} 36. Kg4 {[%clk 0:00:09.8]} 36... h5+ {[%clk 0:00:10]} 37. Kg5 {[%clk
0:00:06.9]} 37... Qf6+ {[%clk 0:00:09.8]} 38. Kxh5 {[%clk 0:00:05.8]} 38... Qf5#
{[%clk 0:00:10.5]} 0-1

[Event "Late-Titled-Tuesday-Blitz-February-20-2024"]
[Site "Chess.com"]
[Date "2024.02.20"]
[Round "7"]
[White "morte-negra"]
[Black "Agentxya"]
[Result "0-1"]
[WhiteElo "2015"]
[BlackElo "2232"]
[TimeControl "180+1"]
[EndTime "15:17:10 PST"]
[Termination "Agentxya won on time"]

1. e4 {[%clk 0:03:00.9]} 1... e5 {[%clk 0:01:45]} 2. Nf3 {[%clk 0:02:58.1]} 2...
Nc6 {[%clk 0:01:45.4]} 3. Bc4 {[%clk 0:02:57]} 3... Nf6 {[%clk 0:01:45.7]} 4.
Ng5 {[%clk 0:02:55.3]} 4... d5 {[%clk 0:01:45.3]} 5. exd5 {[%clk 0:02:55.2]}
5... Na5 {[%clk 0:01:45.9]} 6. Bb5+ {[%clk 0:02:55.4]} 6... c6 {[%clk
0:01:46.5]} 7. dxc6 {[%clk 0:02:55.8]} 7... bxc6 {[%clk 0:01:47.4]} 8. Bd3
{[%clk 0:02:55.6]} 8... Qd5 {[%clk 0:01:43.6]} 9. Qe2 {[%clk 0:02:27.8]} 9...
Bd6 {[%clk 0:01:36.3]} 10. Ne4 {[%clk 0:02:24.6]} 10... Qe6 {[%clk 0:01:29.9]}
11. O-O {[%clk 0:02:19.8]} 11... O-O {[%clk 0:01:29.3]} 12. c3 {[%clk
0:02:14.9]} 12... Nxe4 {[%clk 0:01:29.2]} 13. Bxe4 {[%clk 0:02:13.2]} 13... f5
{[%clk 0:01:29.2]} 14. Bc2 {[%clk 0:02:12.8]} 14... c5 {[%clk 0:01:24.3]} 15.
Na3 {[%clk 0:02:06]} 15... Kh8 {[%clk 0:01:24.2]} 16. d4 {[%clk 0:01:57.3]}
16... cxd4 {[%clk 0:01:21.1]} 17. cxd4 {[%clk 0:01:57.5]} 17... e4 {[%clk
0:01:21.2]} 18. Nb5 {[%clk 0:01:39.6]} 18... Ba6 {[%clk 0:01:19.3]} 19. a4
{[%clk 0:01:40.1]} 19... Nc6 {[%clk 0:01:16.2]} 20. Qh5 {[%clk 0:01:21.5]} 20...
Bxb5 {[%clk 0:01:01.5]} 21. axb5 {[%clk 0:01:10.7]} 21... Nxd4 {[%clk
0:01:01.6]} 22. Ba4 {[%clk 0:01:01.9]} 22... f4 {[%clk 0:00:54.6]} 23. Rd1
{[%clk 0:00:52]} 23... Nf5 {[%clk 0:00:41.5]} 24. b3 {[%clk 0:00:34.9]} 24...
Be5 {[%clk 0:00:37.5]} 25. Rb1 {[%clk 0:00:31.3]} 25... Rad8 {[%clk 0:00:31.5]}
26. Ba3 {[%clk 0:00:31.3]} 26... Rg8 {[%clk 0:00:23.6]} 27. Rxd8 {[%clk
0:00:19.1]} 27... Rxd8 {[%clk 0:00:23.5]} 28. Bc5 {[%clk 0:00:14.9]} 28... Bd4
{[%clk 0:00:20.7]} 29. Bxd4 {[%clk 0:00:13.9]} 29... Nxd4 {[%clk 0:00:19.9]} 30.
Qh4 {[%clk 0:00:09.8]} 30... Qd6 {[%clk 0:00:13.1]} 31. Rf1 {[%clk 0:00:08]}
31... h6 {[%clk 0:00:12.3]} 32. h3 {[%clk 0:00:08.1]} 32... Rf8 {[%clk 0:00:11]}
33. Kh1 {[%clk 0:00:06.9]} 33... f3 {[%clk 0:00:09.2]} 34. g3 {[%clk 0:00:06.2]}
34... e3 {[%clk 0:00:09]} 35. fxe3 {[%clk 0:00:05.8]} 35... f2 {[%clk
0:00:09.4]} 36. Kh2 {[%clk 0:00:04.8]} 36... Nf3+ {[%clk 0:00:09.2]} 0-1

[Event "Late-Titled-Tuesday-Blitz-February-20-2024"]
[Site "Chess.com"]
[Date "2024.02.20"]
[Round "7"]
[White "mjelcic"]
[Black "kalxandria"]
[Result "1-0"]
[WhiteElo "2241"]
[BlackElo "2218"]
[TimeControl "180+1"]
[EndTime "15:17:12 PST"]
[Termination "mjelcic won by resignation"]

1. d4 {[%clk 0:02:59.7]} 1... Nf6 {[%clk 0:02:57.6]} 2. c4 {[%clk 0:02:59.3]}
2... e6 {[%clk 0:02:57.3]} 3. Nc3 {[%clk 0:02:59.4]} 3... d5 {[%clk 0:02:56.9]}
4. e3 {[%clk 0:02:57.5]} 4... Be7 {[%clk 0:02:53.3]} 5. Nf3 {[%clk 0:02:55.8]}
5... O-O {[%clk 0:02:52.5]} 6. Bd3 {[%clk 0:02:50.4]} 6... dxc4 {[%clk
0:02:49.3]} 7. Bxc4 {[%clk 0:02:50.2]} 7... c5 {[%clk 0:02:47.4]} 8. dxc5 {[%clk
0:02:50.2]} 8... Bxc5 {[%clk 0:02:44.8]} 9. O-O {[%clk 0:02:48]} 9... b6 {[%clk
0:02:42.6]} 10. a3 {[%clk 0:02:47]} 10... Bb7 {[%clk 0:02:40.1]} 11. b4 {[%clk
0:02:46.8]} 11... Be7 {[%clk 0:02:36.6]} 12. Bb2 {[%clk 0:02:46.2]} 12... Nbd7
{[%clk 0:02:29.6]} 13. Qe2 {[%clk 0:02:45.6]} 13... Qc7 {[%clk 0:02:24.7]} 14.
Bb3 {[%clk 0:02:30.7]} 14... Rac8 {[%clk 0:02:22.5]} 15. Rac1 {[%clk 0:02:30.5]}
15... Qb8 {[%clk 0:02:21.5]} 16. Rfd1 {[%clk 0:02:23]} 16... Qa8 {[%clk
0:02:17]} 17. Ne1 {[%clk 0:02:23.1]} 17... a5 {[%clk 0:02:14.1]} 18. b5 {[%clk
0:01:57.3]} 18... Nc5 {[%clk 0:02:12.1]} 19. Ba2 {[%clk 0:01:55.6]} 19... a4
{[%clk 0:02:10.3]} 20. f3 {[%clk 0:01:54.3]} 20... Rfd8 {[%clk 0:02:07.2]} 21.
Rxd8+ {[%clk 0:01:53.5]} 21... Rxd8 {[%clk 0:02:06.2]} 22. e4 {[%clk 0:01:51.6]}
22... Qb8 {[%clk 0:01:32]} 23. Rd1 {[%clk 0:01:49]} 23... Rxd1 {[%clk
0:01:29.6]} 24. Qxd1 {[%clk 0:01:49.9]} 24... Qd8 {[%clk 0:01:24.1]} 25. Qxd8+
{[%clk 0:01:49]} 25... Bxd8 {[%clk 0:01:23.4]} 26. Bb1 {[%clk 0:01:45]} 26... e5
{[%clk 0:01:16.7]} 27. Bc2 {[%clk 0:01:42.7]} 27... Nb3 {[%clk 0:00:54.5]} 28.
Nxa4 {[%clk 0:01:39.6]} 28... Nd4 {[%clk 0:00:53.4]} 29. Bxd4 {[%clk 0:01:34.1]}
29... exd4 {[%clk 0:00:54.3]} 30. Nd3 {[%clk 0:01:33.7]} 30... Nd7 {[%clk
0:00:52.1]} 31. Nab2 {[%clk 0:01:26.4]} 31... Nc5 {[%clk 0:00:48.2]} 32. Nxc5
{[%clk 0:01:22.8]} 32... bxc5 {[%clk 0:00:47.8]} 33. Nc4 {[%clk 0:01:20.9]}
33... f5 {[%clk 0:00:43.8]} 34. Kf2 {[%clk 0:01:18.1]} 34... fxe4 {[%clk
0:00:42]} 35. Bxe4 {[%clk 0:01:19]} 35... Bxe4 {[%clk 0:00:41.4]} 36. fxe4
{[%clk 0:01:19.8]} 36... Kf7 {[%clk 0:00:40.9]} 37. a4 {[%clk 0:01:18.5]} 37...
Ke6 {[%clk 0:00:40.5]} 38. a5 {[%clk 0:01:18.4]} 38... Kd7 {[%clk 0:00:35.8]}
39. a6 {[%clk 0:01:09.1]} 39... Kc8 {[%clk 0:00:33]} 40. b6 {[%clk 0:01:06.4]}
40... Kb8 {[%clk 0:00:31.4]} 41. e5 {[%clk 0:01:04.4]} 41... Be7 {[%clk
0:00:27.2]} 42. Ke2 {[%clk 0:00:56.6]} 42... Bd8 {[%clk 0:00:24]} 43. g4 {[%clk
0:00:56.2]} 43... g5 {[%clk 0:00:22.9]} 44. h3 {[%clk 0:00:54.9]} 44... h6
{[%clk 0:00:20.8]} 45. Kd3 {[%clk 0:00:55]} 45... Ka8 {[%clk 0:00:18.7]} 46. Ke4
{[%clk 0:00:54.2]} 46... Kb8 {[%clk 0:00:18.3]} 47. e6 {[%clk 0:00:47.3]} 47...
Be7 {[%clk 0:00:16.8]} 48. a7+ {[%clk 0:00:45.9]} 48... Kb7 {[%clk 0:00:15.1]}
49. Na5+ {[%clk 0:00:45]} 49... Ka8 {[%clk 0:00:14.2]} 50. Nc6 {[%clk
0:00:41.2]} 50... Bf8 {[%clk 0:00:12.1]} 51. e7 {[%clk 0:00:40.9]} 51... Bxe7
{[%clk 0:00:11.2]} 52. Nxe7 {[%clk 0:00:41.8]} 52... Kb7 {[%clk 0:00:07]} 53.
Nd5 {[%clk 0:00:38.2]} 1-0

[Event "Late-Titled-Tuesday-Blitz-February-20-2024"]
[Site "Chess.com"]
[Date "2024.02.20"]
[Round "7"]
[White "MarcoRiehle"]
[Black "BogdanDeac"]
[Result "0-1"]
[WhiteElo "2862"]
[BlackElo "3041"]
[TimeControl "180+1"]
[EndTime "15:17:14 PST"]
[Termination "BogdanDeac won by resignation"]

1. e4 {[%clk 0:03:00.9]} 1... c6 {[%clk 0:02:59.4]} 2. c4 {[%clk 0:03:00.5]}
2... d5 {[%clk 0:03:00.3]} 3. cxd5 {[%clk 0:03:01.3]} 3... cxd5 {[%clk
0:02:59.5]} 4. exd5 {[%clk 0:03:02.2]} 4... Nf6 {[%clk 0:02:57.9]} 5. Nc3 {[%clk
0:03:03.1]} 5... Nxd5 {[%clk 0:02:57.9]} 6. Nf3 {[%clk 0:03:03.6]} 6... a6
{[%clk 0:02:55.5]} 7. Bc4 {[%clk 0:03:02]} 7... Nb6 {[%clk 0:02:50.3]} 8. Bb3
{[%clk 0:02:59.1]} 8... e6 {[%clk 0:02:44.6]} 9. O-O {[%clk 0:02:55.5]} 9...
N8d7 {[%clk 0:02:42.7]} 10. d4 {[%clk 0:02:54.4]} 10... Nf6 {[%clk 0:02:42.6]}
11. Ne5 {[%clk 0:02:47.1]} 11... Be7 {[%clk 0:02:42.1]} 12. f4 {[%clk
0:02:40.2]} 12... O-O {[%clk 0:02:39.8]} 13. Be3 {[%clk 0:02:34.5]} 13... Nbd5
{[%clk 0:02:30.8]} 14. Qf3 {[%clk 0:02:30]} 14... Nxe3 {[%clk 0:01:32.2]} 15.
Qxe3 {[%clk 0:02:30.9]} 15... Bb4 {[%clk 0:01:22.9]} 16. Rad1 {[%clk 0:02:22.5]}
16... Bxc3 {[%clk 0:01:21.6]} 17. bxc3 {[%clk 0:02:21.5]} 17... Qc7 {[%clk
0:00:44.7]} 18. Rf3 {[%clk 0:02:05.8]} 18... b5 {[%clk 0:00:43]} 19. Rdf1 {[%clk
0:02:04.5]} 19... Bb7 {[%clk 0:00:41.7]} 20. Rg3 {[%clk 0:02:04.4]} 20... Ne4
{[%clk 0:00:22.1]} 21. Rh3 {[%clk 0:01:58.6]} 21... Rac8 {[%clk 0:00:21.3]} 22.
f5 {[%clk 0:01:50.8]} 22... Qe7 {[%clk 0:00:20.9]} 23. f6 {[%clk 0:00:47.4]}
23... Nxf6 {[%clk 0:00:20.5]} 24. Bc2 {[%clk 0:00:47.6]} 24... Rfd8 {[%clk
0:00:20.8]} 25. Bxh7+ {[%clk 0:00:32.2]} 25... Nxh7 {[%clk 0:00:20.6]} 26. Rxf7
{[%clk 0:00:32.8]} 26... Re8 {[%clk 0:00:06.4]} 27. Rxe7 {[%clk 0:00:19.2]}
27... Rxe7 {[%clk 0:00:07.3]} 28. Qd3 {[%clk 0:00:19.6]} 28... Ng5 {[%clk
0:00:05.4]} 29. Rg3 {[%clk 0:00:17.3]} 29... Ne4 {[%clk 0:00:05.2]} 30. Rg6
{[%clk 0:00:15.4]} 30... Rxc3 {[%clk 0:00:04.8]} 31. Qd1 {[%clk 0:00:15.4]}
31... Rec7 {[%clk 0:00:04.4]} 32. Nd3 {[%clk 0:00:13.3]} 32... Rxd3 {[%clk
0:00:04.7]} 33. Qxd3 {[%clk 0:00:12.3]} 33... Rc1+ {[%clk 0:00:04.9]} 34. Qf1
{[%clk 0:00:13]} 34... Rxf1+ {[%clk 0:00:05.6]} 35. Kxf1 {[%clk 0:00:13.9]}
35... Bd5 {[%clk 0:00:05.9]} 36. a3 {[%clk 0:00:12.7]} 36... a5 {[%clk
0:00:06.4]} 37. Rg4 {[%clk 0:00:12.6]} 37... a4 {[%clk 0:00:06.1]} 38. Ke2
{[%clk 0:00:11.1]} 38... b4 {[%clk 0:00:06.5]} 39. axb4 {[%clk 0:00:12]} 39...
a3 {[%clk 0:00:07]} 40. Rf4 {[%clk 0:00:12.7]} 40... a2 {[%clk 0:00:07.4]} 41.
Rf1 {[%clk 0:00:13.2]} 41... Bc4+ {[%clk 0:00:07.9]} 0-1

[Event "Late-Titled-Tuesday-Blitz-February-20-2024"]
[Site "Chess.com"]
[Date "2024.02.20"]
[Round "7"]
[White "Msb2"]
[Black "TigrVShlyape"]
[Result "1-0"]
[WhiteElo "3018"]
[BlackElo "2921"]
[TimeControl "180+1"]
[EndTime "15:17:16 PST"]
[Termination "Msb2 won on time"]

1. d4 {[%clk 0:03:00.9]} 1... d5 {[%clk 0:02:55.7]} 2. c4 {[%clk 0:03:00.8]}
2... c6 {[%clk 0:02:55.3]} 3. Nf3 {[%clk 0:03:01.5]} 3... Nf6 {[%clk 0:02:55.3]}
4. Nc3 {[%clk 0:03:02.4]} 4... a6 {[%clk 0:02:54.3]} 5. Qc2 {[%clk 0:03:02.6]}
5... b5 {[%clk 0:02:49.7]} 6. e4 {[%clk 0:03:00.6]} 6... b4 {[%clk 0:02:35.7]}
7. e5 {[%clk 0:03:00.3]} 7... bxc3 {[%clk 0:02:35.8]} 8. exf6 {[%clk 0:03:00.4]}
8... cxb2 {[%clk 0:02:35.5]} 9. Bxb2 {[%clk 0:02:46.6]} 9... exf6 {[%clk
0:02:35.3]} 10. Bc3 {[%clk 0:02:15]} 10... Bd6 {[%clk 0:02:30.6]} 11. Be2 {[%clk
0:02:12.9]} 11... O-O {[%clk 0:02:29.8]} 12. O-O {[%clk 0:02:13.1]} 12... dxc4
{[%clk 0:02:27.7]} 13. Bxc4 {[%clk 0:02:12.6]} 13... Nd7 {[%clk 0:02:26.2]} 14.
Rab1 {[%clk 0:02:08.8]} 14... Nb6 {[%clk 0:02:23.2]} 15. Ba5 {[%clk 0:02:08.6]}
15... Bc7 {[%clk 0:02:23.2]} 16. Bb3 {[%clk 0:01:46.3]} 16... Bd7 {[%clk
0:01:58.5]} 17. Rfe1 {[%clk 0:01:39.9]} 17... Rb8 {[%clk 0:01:50.9]} 18. h3
{[%clk 0:01:39.1]} 18... Nd5 {[%clk 0:01:38.8]} 19. Bxc7 {[%clk 0:01:33.7]}
19... Nxc7 {[%clk 0:01:39.1]} 20. Qc5 {[%clk 0:01:28.3]} 20... Ne6 {[%clk
0:01:26.4]} 21. Qd6 {[%clk 0:01:25.8]} 21... Rb6 {[%clk 0:01:16]} 22. Bxe6
{[%clk 0:01:19.5]} 22... Rxb1 {[%clk 0:01:14.3]} 23. Bxf7+ {[%clk 0:00:51.8]}
23... Kxf7 {[%clk 0:00:59.4]} 24. Rxb1 {[%clk 0:00:52.7]} 24... Qe7 {[%clk
0:00:59.6]} 25. Qxe7+ {[%clk 0:00:49.5]} 25... Kxe7 {[%clk 0:00:59.4]} 26. Rb7
{[%clk 0:00:50.4]} 26... Rd8 {[%clk 0:00:35.8]} 27. Ra7 {[%clk 0:00:47.5]} 27...
Kf8 {[%clk 0:00:30.6]} 28. Rxa6 {[%clk 0:00:45.7]} 28... Be6 {[%clk 0:00:28.1]}
29. a4 {[%clk 0:00:43.4]} 29... Bd5 {[%clk 0:00:27.3]} 30. Nd2 {[%clk
0:00:40.6]} 30... Ba2 {[%clk 0:00:25.8]} 31. Nf3 {[%clk 0:00:29.5]} 31... Bd5
{[%clk 0:00:24.9]} 32. a5 {[%clk 0:00:30]} 32... Bxf3 {[%clk 0:00:24.7]} 33.
gxf3 {[%clk 0:00:30.9]} 33... Rxd4 {[%clk 0:00:23.4]} 34. Rxc6 {[%clk
0:00:31.6]} 34... Ra4 {[%clk 0:00:23.6]} 35. a6 {[%clk 0:00:32.2]} 35... Kf7
{[%clk 0:00:23.4]} 36. Rc7+ {[%clk 0:00:32.4]} 36... Kg6 {[%clk 0:00:23.4]} 37.
a7 {[%clk 0:00:33.3]} 37... Kh6 {[%clk 0:00:22.6]} 38. Kf1 {[%clk 0:00:32.3]}
38... g5 {[%clk 0:00:22]} 39. Ke2 {[%clk 0:00:32.6]} 39... Kg6 {[%clk
0:00:20.5]} 40. Kd3 {[%clk 0:00:33.1]} 40... h5 {[%clk 0:00:20.4]} 41. Kc3
{[%clk 0:00:32]} 41... Kf5 {[%clk 0:00:18.2]} 42. Kb3 {[%clk 0:00:32.2]} 42...
Ra1 {[%clk 0:00:18.3]} 43. Kb4 {[%clk 0:00:28.7]} 43... Kf4 {[%clk 0:00:18.6]}
44. Rc4+ {[%clk 0:00:29]} 44... Kxf3 {[%clk 0:00:15.2]} 45. Rc3+ {[%clk
0:00:29.5]} 45... Kxf2 {[%clk 0:00:13.1]} 46. Ra3 {[%clk 0:00:30.4]} 46... Rb1+
{[%clk 0:00:04.2]} 47. Ka5 {[%clk 0:00:30]} 1-0